fUSD/lending_fUSD_20240227
["ID","MTS","AMOUNT","RATE_DAILY","PERIOD"]
[315423406,1709025033048,-500.0,0.00022739,2]
[315423407,1709025033057,-700.41,0.00022739,2]
[315423408,1709025033067,-500.0,0.00022739,2]
[315423409,1709025033076,-509.34115654,0.00022739,2]
[315423410,1709025033085,-500.0,0.00022739,2]
[315423411,1709025033094,-601.17,0.00022739,2]
[315423412,1709025033103,-500.0,0.00022739,2]
[315423413,1709025033112,-500.0,0.00022739,2]
[315423414,1709025033121,-500.0,0.00022739,2]
[315423415,1709025033130,-500.0,0.00022739,2]
[315423416,1709025033139,-500.0,0.00022739,2]
[315423417,1709025033150,-500.0,0.00022739,2]
[315423418,1709025033159,-1332.48,0.00022739,2]
[315423419,1709025033169,-500.0,0.00022739,2]
[315423420,1709025033178,-500.0,0.00022739,2]
[315423421,1709025033187,-150.4,0.0002274,2]
[315423422,1709025033196,-159.79,0.0002274,2]
[315423423,1709025033206,-152.9106692,0.00022769,2]
[315423424,1709025033215,-194.97,0.00022841,2]
[315423425,1709025033224,-182.54,0.00022889,2]
[315423426,1709025033233,-500.0,0.00022897,2]
[315423427,1709025033242,-500.0,0.00022897,2]
[315423428,1709025033251,-500.0,0.00022897,2]
[315423429,1709025033261,-1000.0,0.00022899,2]
[315423430,1709025033270,-1266.17545646,0.00022899,2]
[315423431,1709025033279,-500.0,0.00022899,2]
[315423432,1709025033288,-500.0,0.00022899,2]
[315423433,1709025033298,-703.62,0.00022899,2]
[315423434,1709025033307,-760.0,0.00022899,2]
[315423435,1709025033316,-500.0,0.00022899,2]
[315423436,1709025033325,-500.0,0.00022899,2]
[315423437,1709025033334,-500.0,0.00022899,2]
[315423438,1709025033343,-500.0,0.00022899,2]
[315423439,1709025033353,-500.0,0.00022899,2]
[315423440,1709025033363,-1099.78,0.00022899,2]
[315423441,1709025033373,-500.0,0.00022899,2]
[315423442,1709025033381,-5000.0,0.000229,2]
[315423443,1709025033391,-3074.34871189,0.000229,2]
[315423444,1709025033409,-935.45384683,0.000229,2]
[315423448,1709025037595,-152.9106692,0.00022769,2]
[315423450,1709025037605,-990.19744128,0.000229,2]
[315423451,1709025037615,-388.15772053,0.000229,2]
[315423452,1709025037624,-218.42805744,0.000229,2]
[315423453,1709025037633,-188.70842586,0.000229,2]
[315423454,1709025037643,-396.59283448,0.000229,2]
[315423455,1709025037652,-6112.55580067,0.000229,2]
[315423456,1709025037663,-719.70787639,0.000229,2]
[315423457,1709025037673,-1014.00812492,0.000229,2]
[315423458,1709025037682,-2923.02629808,0.000229,2]
[315423459,1709025037692,-433.52240746,0.000229,2]
[315423460,1709025037702,-584.97,0.00022911,2]
[315423461,1709025037711,-194.97,0.00022956,2]
[315423462,1709025037720,-218.4280572,0.00022956,2]
[315423463,1709025037730,-500.0,0.00022988,2]
[315423464,1709025037739,-500.0,0.00022988,2]
[315423465,1709025037748,-6112.55580063,0.0002299,2]
[315423466,1709025037758,-283.50484539,0.0002299,2]
[315423467,1709025037767,-1913.17991431,0.00022995,2]
[315423468,1709025037777,-500.0,0.00022995,2]
[315423469,1709025037786,-500.0,0.00022995,2]
[315423470,1709025037795,-500.0,0.00022996,2]
[315423471,1709025037805,-500.0,0.00022996,2]
[315423472,1709025037814,-564.37833101,0.00022997,2]
[315423473,1709025037823,-500.0,0.00022997,2]
[315423474,1709025038074,-500.0,0.00022997,2]
[315423475,1709025038083,-500.0,0.00022997,2]
[315423476,1709025038092,-155.0,0.00022997,2]
[315423477,1709025038101,-12433.0361413,0.00022997,2]
[315423478,1709025038110,-322.6911436,0.00022997,2]
[315423479,1709025038119,-204.22427724,0.00022997,2]
[315423480,1709025038129,-505.33973755,0.00022997,2]
[315423483,1709025038138,-303.18995533,0.00022997,3]
[315423485,1709025038147,-251.18759819,0.00022997,2]
[315423486,1709025038157,-150.01,0.00022998,2]
[315423489,1709025038166,-4987.33823048,0.00022998,2]
[315423491,1709025038178,-267.02252743,0.00022998,2]
[315423493,1709025038187,-500.0,0.00022998,2]
[315423495,1709025038196,-500.0,0.00022998,2]
[315423498,1709025038206,-500.0,0.00022998,2]
[315423500,1709025038216,-500.0,0.00022999,2]
[315423503,1709025038225,-204.44531778,0.00022999,2]
[315423505,1709025038234,-500.0,0.00022999,2]
[315423507,1709025038243,-700.41,0.00022999,2]
[315423509,1709025038253,-700.41,0.00022999,2]
[315423511,1709025038262,-244.62470449,0.00022999,2]
[315423515,1709025038287,-455.78529551,0.00022999,2]
[315423517,1709025038296,-700.41,0.00022999,2]
[315423519,1709025038305,-700.41,0.00022999,2]
[315423521,1709025038314,-171.53193286,0.00022999,2]
[315423523,1709025038326,-528.87806714,0.00022999,2]
[315423525,1709025038336,-61.25602183,0.00022999,2]
[315423528,1709025038352,-639.15397817,0.00022999,2]
[315423530,1709025038361,-700.41,0.00022999,2]
[315423532,1709025038370,-700.41,0.00022999,2]
[315423534,1709025038379,-700.41,0.00022999,2]
[315423536,1709025038388,-700.41,0.00022999,2]
[315423538,1709025038398,-700.41,0.00022999,2]
[315423540,1709025038408,-700.41,0.00022999,2]
[315423542,1709025038418,-700.41,0.00022999,2]
[315423544,1709025038427,-700.41,0.00022999,2]
[315423546,1709025038436,-700.41,0.00022999,2]
[315423548,1709025038449,-700.41,0.00022999,2]
[315423551,1709025038458,-700.41,0.00022999,2]
[315423553,1709025038467,-700.41,0.00022999,2]
[315423555,1709025038478,-700.41,0.00022999,2]
[315423557,1709025038488,-700.41,0.00022999,2]
[315423558,1709025038499,-700.41,0.00022999,2]
[315423560,1709025038509,-700.54053744,0.00022999,2]
[315423562,1709025038522,-500.0,0.00022999,2]
[315423564,1709025038531,-500.0,0.00022999,2]
[315423566,1709025038541,-500.0,0.00022999,2]
[315423569,1709025038552,-500.0,0.00022999,2]
[315423571,1709025038562,-500.0,0.00022999,2]
[315423572,1709025038573,-500.0,0.00022999,2]
[315423574,1709025038582,-500.0,0.00022999,2]
[315423576,1709025038592,-500.0,0.00022999,2]
[315423579,1709025038601,-476.33,0.00022999,2]
[315423581,1709025038611,-500.0,0.00022999,2]
[315423583,1709025038620,-500.0,0.00022999,2]
[315423585,1709025038630,-500.0,0.00022999,2]
[315423587,1709025038639,-500.0,0.00022999,2]
[315423589,1709025038648,-500.0,0.00022999,2]
[315423591,1709025038658,-500.0,0.00022999,2]
[315423593,1709025038667,-500.0,0.00022999,2]
[315423594,1709025038677,-500.0,0.00022999,2]
[315423597,1709025038686,-500.0,0.00022999,2]
[315423598,1709025038696,-180.04580472,0.00022999,2]
[315423601,1709025038706,-500.0,0.00022999,2]
[315423603,1709025038715,-500.0,0.00022999,2]
[315423605,1709025038724,-501.05269224,0.00022999,2]
[315423607,1709025038737,-22.9756876,0.00022999,2]
[315423609,1709025038746,-500.0,0.00022999,2]
[315423611,1709025038755,-500.0,0.00022999,2]
[315423613,1709025038765,-500.0,0.00022999,2]
[315423615,1709025038774,-500.0,0.00022999,2]
[315423617,1709025038783,-500.0,0.00022999,2]
[315423619,1709025038792,-500.0,0.00022999,2]
[315423621,1709025038801,-500.0,0.00022999,2]
[315423623,1709025038811,-350.2,0.00022999,2]
[315423625,1709025038820,-500.0,0.00022999,2]
[315423627,1709025038828,-500.0,0.00022999,2]
[315423629,1709025038837,-500.0,0.00022999,2]
[315423631,1709025038846,-500.0,0.00022999,2]
[315423633,1709025038856,-462.89266311,0.00022999,2]
[315423635,1709025038865,-500.0,0.00022999,2]
[315423637,1709025038874,-500.0,0.00022999,2]
[315423640,1709025038883,-500.0,0.00022999,2]
[315423642,1709025038892,-500.0,0.00022999,2]
[315423643,1709025038902,-500.0,0.00022999,2]
[315423645,1709025038911,-500.0,0.00022999,2]
[315423648,1709025038921,-500.0,0.00022999,2]
[315423650,1709025038930,-500.0,0.00022999,2]
[315423651,1709025038940,-500.0,0.00022999,2]
[315423654,1709025038949,-500.0,0.00022999,2]
[315423656,1709025038958,-500.0,0.00022999,2]
[315423658,1709025038968,-500.0,0.00022999,2]
[315423660,1709025038976,-500.0,0.00022999,2]
[315423662,1709025038985,-500.0,0.00022999,2]
[315423664,1709025038994,-500.0,0.00022999,2]
[315423666,1709025039003,-500.0,0.00022999,2]
[315423668,1709025039012,-500.0,0.00022999,2]
[315423670,1709025039021,-500.0,0.00022999,2]
[315423672,1709025039030,-500.0,0.00022999,2]
[315423674,1709025039039,-500.0,0.00022999,2]
[315423676,1709025039048,-267.19,0.00022999,2]
[315423678,1709025039058,-500.0,0.00022999,2]
[315423680,1709025039067,-500.0,0.00022999,2]
[315423682,1709025039076,-500.0,0.00022999,2]
[315423684,1709025039085,-500.0,0.00022999,2]
[315423686,1709025039094,-500.0,0.00022999,2]
[315423688,1709025039104,-500.0,0.00022999,2]
[315423690,1709025039113,-500.0,0.00022999,2]
[315423692,1709025039122,-500.0,0.00022999,2]
[315423694,1709025039131,-500.0,0.00022999,2]
[315423696,1709025039140,-330.19,0.00022999,2]
[315423698,1709025039150,-500.0,0.00022999,2]
[315423699,1709025039160,-500.0,0.00022999,2]
[315423702,1709025039169,-500.0,0.00022999,2]
[315423704,1709025039179,-500.0,0.00022999,2]
[315423706,1709025039188,-557.04420799,0.00022999,2]
[315423708,1709025039197,-703.62,0.00022999,2]
[315423710,1709025039207,-703.62,0.00022999,2]
[315423712,1709025039216,-703.62,0.00022999,2]
[315423714,1709025039225,-703.62,0.00022999,2]
[315423716,1709025039234,-703.62,0.00022999,2]
[315423718,1709025039243,-703.62,0.00022999,2]
[315423720,1709025039252,-703.62,0.00022999,2]
[315423722,1709025039262,-703.62,0.00022999,2]
[315423724,1709025039271,-703.62,0.00022999,2]
[315423726,1709025039280,-703.62,0.00022999,2]
[315423728,1709025039289,-703.62,0.00022999,2]
[315423730,1709025039299,-703.62,0.00022999,2]
[315423732,1709025039308,-703.62,0.00022999,2]
[315423734,1709025039317,-703.62,0.00022999,2]
[315423736,1709025039326,-703.62,0.00022999,2]
[315423738,1709025039335,-703.62,0.00022999,2]
[315423740,1709025039344,-703.62,0.00022999,2]
[315423742,1709025039353,-703.62,0.00022999,2]
[315423744,1709025039362,-703.62,0.00022999,2]
[315423746,1709025039371,-703.62,0.00022999,2]
[315423748,1709025039380,-703.62,0.00022999,2]
[315423750,1709025039389,-703.62,0.00022999,2]
[315423752,1709025039399,-703.8,0.00022999,2]
[315423754,1709025039409,-760.0,0.00022999,2]
[315423756,1709025039418,-760.0,0.00022999,2]
[315423758,1709025039427,-760.0,0.00022999,2]
[315423760,1709025039436,-760.0,0.00022999,2]
[315423761,1709025039445,-760.0,0.00022999,2]
[315423763,1709025039455,-760.0,0.00022999,2]
[315423765,1709025039464,-760.0,0.00022999,2]
[315423767,1709025039474,-760.0,0.00022999,2]
[315423770,1709025039487,-760.0,0.00022999,2]
[315423772,1709025039499,-760.0,0.00022999,2]
[315423774,1709025039509,-760.0,0.00022999,2]
[315423776,1709025039519,-760.0,0.00022999,2]
[315423778,1709025039529,-760.0,0.00022999,2]
[315423780,1709025039538,-760.0,0.00022999,2]
[315423782,1709025039547,-760.0,0.00022999,2]
[315423784,1709025039557,-760.0,0.00022999,2]
[315423786,1709025039567,-760.0,0.00022999,2]
[315423788,1709025039576,-760.0,0.00022999,2]
[315423790,1709025039586,-760.0,0.00022999,2]
[315423792,1709025039595,-760.0,0.00022999,2]
[315423794,1709025039604,-500.0,0.00022999,2]
[315423796,1709025039613,-760.0,0.00022999,2]
[315423798,1709025039622,-500.0,0.00022999,2]
[315423800,1709025039632,-760.0,0.00022999,2]
[315423802,1709025039641,-760.03571595,0.00022999,2]
[315423804,1709025039652,-500.0,0.00022999,2]
[315423806,1709025039663,-500.0,0.00022999,2]
[315423808,1709025039672,-500.0,0.00022999,2]
[315423809,1709025039682,-500.0,0.00022999,2]
[315423812,1709025039691,-500.0,0.00022999,2]
[315423813,1709025039701,-347.31577448,0.00022999,2]
[315423816,1709025039710,-500.0,0.00022999,2]
[315423817,1709025039719,-500.0,0.00022999,2]
[315423819,1709025039728,-500.0,0.00022999,2]
[315423821,1709025039737,-500.0,0.00022999,2]
[315423823,1709025039747,-487.9121054,0.00022999,2]
[315423826,1709025039756,-500.0,0.00022999,2]
[315423828,1709025039765,-500.0,0.00022999,2]
[315423830,1709025039774,-500.0,0.00022999,2]
[315423831,1709025039786,-500.0,0.00022999,2]
[315423833,1709025039795,-500.0,0.00022999,2]
[315423835,1709025039807,-500.0,0.00022999,2]
[315423837,1709025039817,-500.0,0.00022999,2]
[315423840,1709025039826,-500.0,0.00022999,2]
[315423842,1709025039835,-500.0,0.00022999,2]
[315423844,1709025039845,-451.03504761,0.00022999,2]
[315423846,1709025039854,-500.0,0.00022999,2]
[315423848,1709025039864,-472.57,0.00022999,2]
[315423850,1709025039873,-1332.48,0.00022999,2]
[315423852,1709025039882,-1332.48,0.00022999,2]
[315423854,1709025039891,-1332.48,0.00022999,2]
[315423856,1709025039900,-1332.48,0.00022999,2]
[315423858,1709025039910,-1332.48,0.00022999,2]
[315423860,1709025039919,-1332.48,0.00022999,2]
[315423862,1709025039928,-1332.48,0.00022999,2]
[315423864,1709025039937,-1332.48,0.00022999,2]
[315423866,1709025039946,-1332.48,0.00022999,2]
[315423867,1709025039955,-1332.48,0.00022999,2]
[315423869,1709025039965,-1332.48,0.00022999,2]
[315423872,1709025039974,-1332.48,0.00022999,2]
[315423873,1709025039983,-1332.48,0.00022999,2]
[315423875,1709025039992,-1332.48,0.00022999,2]
[315423877,1709025040001,-1332.48,0.00022999,2]
[315423879,1709025040011,-1332.48,0.00022999,2]
[315423882,1709025040020,-1332.48,0.00022999,2]
[315423884,1709025040029,-1332.48,0.00022999,2]
[315423885,1709025040038,-1332.48,0.00022999,2]
[315423887,1709025040047,-1332.48,0.00022999,2]
[315423890,1709025040056,-1332.48,0.00022999,2]
[315423892,1709025040065,-1332.48,0.00022999,2]
[315423894,1709025040074,-1332.4,0.00022999,2]
[315423896,1709025040084,-500.0,0.00022999,2]
[315423898,1709025040093,-500.0,0.00022999,2]
[315423899,1709025040102,-500.0,0.00022999,2]
[315423901,1709025040111,-500.0,0.00022999,2]
[315423903,1709025040121,-500.0,0.00022999,2]
[315423905,1709025040130,-500.0,0.00022999,2]
[315423907,1709025040139,-500.0,0.00022999,2]
[315423910,1709025040149,-500.0,0.00022999,2]
[315423911,1709025040163,-500.0,0.00022999,2]
[315423912,1709025040172,-500.0,0.00022999,2]
[315423913,1709025040181,-500.0,0.00022999,2]
[315423915,1709025040190,-500.0,0.00022999,2]
[315423916,1709025040199,-212.19,0.00022999,2]
[315423917,1709025040209,-500.0,0.00022999,2]
[315423918,1709025040218,-500.0,0.00022999,2]
[315423919,1709025040226,-500.0,0.00022999,2]
[315423920,1709025040235,-500.0,0.00022999,2]
[315423921,1709025040245,-500.0,0.00022999,2]
[315423922,1709025040255,-265.48332071,0.00022999,2]
[315423924,1709025040263,-500.0,0.00022999,2]
[315423926,1709025040272,-500.0,0.00022999,2]
[315423928,1709025040281,-528.47,0.00022999,2]
[315423930,1709025040291,-1099.78,0.00022999,2]
[315423932,1709025040300,-1099.78,0.00022999,2]
[315423934,1709025040309,-1099.78,0.00022999,2]
[315423936,1709025040318,-1099.78,0.00022999,2]
[315423938,1709025040327,-1099.78,0.00022999,2]
[315423940,1709025040337,-1099.78,0.00022999,2]
[315423942,1709025040346,-1099.78,0.00022999,2]
[315423944,1709025040355,-1099.78,0.00022999,2]
[315423946,1709025040364,-1099.78,0.00022999,2]
[315423948,1709025040373,-1099.78,0.00022999,2]
[315423950,1709025040382,-1099.78,0.00022999,2]
[315423952,1709025040392,-1099.78,0.00022999,2]
[315423954,1709025040400,-1099.78,0.00022999,2]
[315423956,1709025040410,-1099.78,0.00022999,2]
[315423958,1709025040419,-1099.78,0.00022999,2]
[315423960,1709025040428,-1099.78,0.00022999,2]
[315423962,1709025040438,-1099.78,0.00022999,2]
[315423964,1709025040447,-1099.78,0.00022999,2]
[315423966,1709025040456,-1099.78,0.00022999,2]
[315423968,1709025040466,-1099.78,0.00022999,2]
[315423970,1709025040476,-1099.78,0.00022999,2]
[315423972,1709025040485,-1099.78,0.00022999,2]
[315423974,1709025040496,-1099.96,0.00022999,2]
[315423976,1709025040505,-500.0,0.00022999,2]
[315423978,1709025040514,-500.0,0.00022999,2]
[315423980,1709025040524,-500.0,0.00022999,2]
[315423982,1709025040533,-500.0,0.00022999,2]
[315423984,1709025040543,-500.0,0.00022999,2]
[315423986,1709025040552,-446.63307002,0.00022999,2]
[315423988,1709025040561,-75564.87241124,0.00023,4]
[315423990,1709025040571,-349241.44269949,0.00023,2]
[315424007,1709025040728,-5547.49643221,0.00023,2]
[315424009,1709025040744,-52881.76112244,0.00023,2]
[315424085,1709025041453,-2081.87304857,0.00023,2]
[315424241,1709025045274,-268.89,0.0002299,3]
[315424242,1709025045283,-150.01,0.00022998,2]
[315424243,1709025045294,-1771.44166176,0.00022998,2]
[315424244,1709025045303,-641505.19152583,0.00023,2]
[315424247,1709025045339,-10170.64606935,0.00023,2]
[315424248,1709025045404,-33547.28007335,0.00023,2]
[315424249,1709025045418,-1436.09499886,0.00023,2]
[315424250,1709025045428,-941.05499857,0.00023,2]
[315424251,1709025045439,-377.5310902,0.00023,2]
[315424252,1709025045467,-1027.3285008,0.00023,2]
[315424254,1709025045479,-6182.09254191,0.00023,2]
[315424256,1709025045493,-6842.55945007,0.00023,2]
[315424262,1709025045706,-5950.03124079,0.00023,2]
[315424263,1709025045719,-6944.01407125,0.00023,2]
[315424264,1709025045769,-4226.5,0.00023,2]
[315424265,1709025045886,-6336.46767406,0.00023,2]
[315424266,1709025045946,-508.27539256,0.00023,2]
[315424267,1709025046007,-553.56974129,0.00023,2]
[315424268,1709025046069,-1064.10511605,0.00023,2]
[315424271,1709025046081,-1473.7836402,0.00023,2]
[315424277,1709025084522,360.0233826,0.00015,2]
[315424278,1709025084546,28358.60473509,0.00015,2]
[315424279,1709025194870,2280.20466401,0.00022738,30]
[315424281,1709025385251,2800.0,0.0003,120]
[315424282,1709025463594,6271.18282897,0.0003,120]
[315424283,1709025930411,-444.68604347,0.00018999,2]
[315424284,1709025930431,-849.52,0.00019,2]
[315424285,1709025930452,-123.87670176,0.0002,2]
[315424286,1709026029166,-150.0,0.00019999,2]
[315424287,1709026029186,-42.16146981,0.0002,2]
[315424304,1709026231892,-231.68142865,0.00019999,2]
[315424305,1709026231901,-4424.20331016,0.0002,2]
[315424306,1709026231913,-2108.08941045,0.0002,2]
[315424307,1709026231926,-302.19696592,0.0002,2]
[315424308,1709026231952,-22784.20088016,0.0002,2]
[315424309,1709026231966,-2238.58117672,0.0002,2]
[315424310,1709026231977,-16203.11190085,0.0002,2]
[315424311,1709026231989,-56409.09424512,0.0002,2]
[315424312,1709026232001,-68146.00415264,0.0002,2]
[315424313,1709026232011,-191.91293503,0.0002,2]
[315424314,1709026232020,-204.0,0.00020464,2]
[315424315,1709026232030,-453.18233898,0.00020503,2]
[315424316,1709026232039,-2000.0,0.00020558,2]
[315424317,1709026232049,-23900.0,0.00020601,2]
[315424318,1709026232059,-155.4,0.00020649,2]
[315424319,1709026232069,-725.35,0.00020659,2]
[315424320,1709026232255,-8175.21,0.00020669,2]
[315424321,1709026232266,-820.09,0.0002068,2]
[315424322,1709026232276,-500.0,0.00020682,2]
[315424323,1709026232285,-1313.24,0.00020684,2]
[315424324,1709026232295,-4665.18,0.00020685,2]
[315424325,1709026232306,-250.0,0.000207,2]
[315424326,1709026232316,-250.0,0.00020716,2]
[315424327,1709026232327,-800.0,0.00020748,2]
[315424328,1709026232336,-181.52,0.00020937,2]
[315424329,1709026232345,-216.67,0.00020945,2]
[315424330,1709026232354,-500.0,0.00021048,2]
[315424331,1709026232364,-171.72,0.00021081,2]
[315424332,1709026232374,-160.87138744,0.00021191,2]
[315424333,1709026232384,-849.52,0.00021264,2]
[315424334,1709026232393,-678.0,0.00021437,2]
[315424335,1709026232402,-162.0,0.00021437,2]
[315424336,1709026232411,-200.0,0.00021592,2]
[315424337,1709026232420,-2462.82450478,0.000219,10]
[315424338,1709026232438,-111.17549522,0.000219,10]
[315424339,1709026232447,-338.86157778,0.000219,2]
[315424340,1709026232467,-5161.13842222,0.000219,2]
[315424341,1709026232476,-200.0,0.00021909,2]
[315424342,1709026232485,-163.84,0.00021918,2]
[315424343,1709026232497,-855.1,0.00021918,2]
[315424344,1709026232507,-712.58,0.00021918,2]
[315424345,1709026232517,-593.82,0.00021918,2]
[315424346,1709026232527,-494.85,0.00021918,2]
[315424347,1709026232536,-412.37,0.00021918,2]
[315424348,1709026232546,-343.64,0.00021918,2]
[315424349,1709026232555,-286.37,0.00021918,2]
[315424350,1709026232564,-238.64,0.00021918,2]
[315424351,1709026232574,-198.87,0.00021918,2]
[315424352,1709026232583,-2000.0,0.00022,2]
[315424353,1709026232592,-1750.0,0.00022,3]
[315424354,1709026232602,-99312.78157778,0.00022,2]
[315424355,1709026232615,-12305.20365745,0.00022,2]
[315424356,1709026232627,-594.49616484,0.00022,2]
[315424357,1709026232646,-1592.29409451,0.00022,2]
[315424358,1709026232659,-521.97670531,0.00022,2]
[315424359,1709026232672,-10762.35817355,0.00022,2]
[315424360,1709026232683,-20391.37557804,0.00022,2]
[315424361,1709026232694,-106925.83000798,0.00022,2]
[315424362,1709026232719,-1875.38731659,0.00022,2]
[315424363,1709026232745,-1934.24120179,0.00022,2]
[315424364,1709026232757,-143784.05552216,0.00022,2]
[315424365,1709026232766,-216.67,0.00022036,2]
[315424366,1709026232776,-160.87138744,0.00022046,2]
[315424367,1709026232786,-173.94142956,0.00022074,3]
[315424368,1709026232795,-181.73037067,0.00022075,3]
[315424369,1709026232804,-879.0304,0.00022231,2]
[315424370,1709026232814,-725.35,0.00022303,2]
[315424371,1709026232823,-359.47823459,0.0002233,2]
[315424372,1709026232834,-465.83846625,0.0002233,2]
[315424373,1709026232844,-200000.0,0.00022331,2]
[315424374,1709026232854,-1107.90352435,0.00022399,2]
[315424375,1709026232863,-381.8831,0.00022499,2]
[315424376,1709026232872,-64218.85548147,0.000225,2]
[315424377,1709026232882,-200.0,0.000225,2]
[315424378,1709026232891,-155.0,0.000225,2]
[315424379,1709026232901,-678.0,0.00022533,2]
[315424380,1709026232910,-150.0,0.00022533,2]
[315424381,1709026232921,-204.0,0.00022544,5]
[315424382,1709026232930,-1107.90352434,0.00022611,2]
[315424383,1709026232940,-1391.4871099,0.00022668,2]
[315424384,1709026232949,-2000.0,0.000227,2]
[315424385,1709026232958,-2063.81359817,0.000227,2]
[315424386,1709026232967,-1000.0,0.000227,2]
[315424387,1709026232977,-2000.0,0.000227,2]
[315424388,1709026232986,-500.0,0.000227,2]
[315424389,1709026232995,-1200.0,0.000227,2]
[315424390,1709026233004,-300.0,0.000227,2]
[315424391,1709026233014,-1000.0,0.000227,2]
[315424392,1709026233023,-500.0,0.000227,2]
[315424393,1709026233032,-192.98,0.00022712,2]
[315424394,1709026233041,-155.4,0.00022714,2]
[315424395,1709026233050,-514.65,0.00022739,2]
[315424396,1709026233059,-500.0,0.00022739,2]
[315424397,1709026233068,-500.0,0.00022739,2]
[315424398,1709026233077,-500.0,0.00022739,2]
[315424399,1709026233086,-500.0,0.00022739,2]
[315424400,1709026233095,-925.25,0.00022739,2]
[315424401,1709026233104,-500.0,0.00022739,2]
[315424402,1709026233113,-500.0,0.00022739,2]
[315424403,1709026233123,-398.18422552,0.00022739,2]
[315424404,1709026233132,-498.7006,0.00022739,2]
[315424405,1709026233142,-500.0,0.00022739,2]
[315424406,1709026233151,-150.4,0.0002274,2]
[315424407,1709026233161,-159.79,0.0002274,2]
[315424408,1709026233170,-152.9106692,0.00022769,2]
[315424409,1709026233179,-200.0,0.00022815,2]
[315424410,1709026233188,-200.0,0.00022815,2]
[315424411,1709026233198,-200.0,0.00022816,2]
[315424412,1709026233207,-800.0,0.00022816,2]
[315424413,1709026233217,-200.0,0.00022816,2]
[315424414,1709026233226,-1107.90352434,0.00022824,2]
[315424415,1709026233235,-423.37611094,0.00022899,2]
[315424416,1709026233244,-315.26635435,0.00022899,2]
[315424417,1709026233252,-500.0,0.00022899,2]
[315424418,1709026233261,-500.0,0.00022899,2]
[315424419,1709026233271,-500.0,0.00022899,2]
[315424420,1709026233280,-500.0,0.00022899,2]
[315424421,1709026233289,-20714.27075269,0.000229,2]
[315424422,1709026233298,-58315.7178,0.000229,2]
[315424423,1709026233307,-1000.0,0.000229,2]
[315424424,1709026233316,-160.87138744,0.000229,2]
[315424425,1709026233325,-215.27442992,0.000229,2]
[315424426,1709026233335,-5000.0,0.000229,2]
[315424427,1709026233344,-188.70842585,0.000229,2]
[315424428,1709026233353,-264.395223,0.000229,2]
[315424429,1709026233362,-289.0149383,0.000229,2]
[315424430,1709026233372,-479.80525092,0.000229,2]
[315424431,1709026233381,-215.27442977,0.00022975,2]
[315424432,1709026233390,-493.10852583,0.00022997,2]
[315424433,1709026233399,-514.65,0.00022998,2]
[315424434,1709026233408,-500.0,0.00022998,2]
[315424435,1709026233418,-500.0,0.00022998,2]
[315424436,1709026233427,-500.0,0.00022998,2]
[315424437,1709026233436,-500.0,0.00022998,2]
[315424438,1709026233446,-925.25,0.00022998,2]
[315424439,1709026233457,-500.0,0.00022998,2]
[315424440,1709026233468,-500.0,0.00022998,2]
[315424441,1709026233478,-191.56142596,0.00022999,2]
[315424442,1709026233488,-150.01,0.00022999,2]
[315424443,1709026233497,-514.65,0.00022999,2]